Workbook

Sheet Ohje
A1: LIDAR KOORDINAATTIEN LASKENTATAULUKON KÄYTTÖOHJE
A2: - Syötä taulukkoon MML-karttalehtien numerot, jotka vastaavat noudettuja aineistoja.
A3: - Ruudun koko on aina 3000 x 3000 metriä.
A4: - Syötä taulukkoon vasemman alaruudun vasemman alakulman koordinaatit.
A5: - Syötä vielä karttaprojektille nimi ja käytettävän MML Shape tiedoston nimi.
A6: - Tulosta paperille allaolevan tyyppinen kuva ja piirrä siihen kartoitettava alue
A7: - Mittaa ruudun koko milleinä
A8: - Samoin mittaa kartoitettavan alueen mitat ruudukon suhteen (kts. Kuva)
A9: - Samoin mittaa kartoitettavan alueen mitat ruudukon suhteen (kts. Kuva)
A10: - Syötä nämä 5 mittaa taulukkoon niille kuuluviin ruutuihin.
A11: (voit toki käyttää myös todellisia metrejä; silloin ruudin koko on 3000)
A13: Tämän jälkeen taulukko laskee valmiiksi kaikki aineiston yhdistelyyn tarvittavat
A14: koordinaatit (esimerkiksi Martin Isembergin las2las.exe ohjelmalle)
A15: Taulukon oikeassa reunassa on myös valmis .BAT ohjelman koodi, jolla eri
A16: käsittelyvaiheet voidaan tehdä automaattisesti peräkkäin.
A17: (voit kopioida koodin tekstieditorin kautta BAT tiedostoon)
A18: Huomaa, että hakemistossa on oltava las2las.exe, las2txt.exe ja pullauta.exe ohjelmat.
C33: KOMENTONÄPPÄIMET
C34: Pullauta kartta | D34: = | E34: Suorittaa LiDAR aineiston optimoinnin ja "Pullauttaa" lopuksi alueen kartan, joka näytetään IrfanView ohjelmassa.
C36: Tee DXF tiedostot | D36: = | E36: Generoi LiDAR aineistosta DXF tiedostot. Niitä voi hyödyntää esim. Vanhemmissaa OCAD versioissa.

Sheet 4AREA
F1: Projektin nimi: | I1: Kivikko | T1: LAZ tiedotojen yhdistely NELJÄLTÄ MML-karttalehdeltä
F2: Shape tiedoston nimi: | I2: L4134R.shp.zip L4134l.shp.zip
T3: Kopioi nämä rivit esimerkiksi "PULLAUTIN.BAT" tiedostoksi, jolla voit ajaa pullautuksen
K4: =D36+3000 -> 392000 | L4: (X) | R4: =D36+6000 -> 395000 | S4: (X) | T4: ="rem pisteet vasemmasta alaosasta "&G34&".laz" -> rem pisteet vasemmasta alaosasta L4134C3.laz
G5: L4134C4 | K5: =D37+6000 -> 6684000 | L5: (Y) | P5: L4134E2 | R5: =D37+6000 -> 6684000 | S5: (Y) | T5: ="las2las -i "&G34&".laz -o "&G34&"_P.laz -keep_xy "&TEXT(G27,"#")&" "&TEXT(G28,"#")&" "&TEXT(K20,"#")&" "&TEXT(K21,"#") -> las2las -i L4134C3.laz -o L4134C3_P.laz -keep_xy 391100 6679300 392000 6681000
T6: ="rem pisteet vasemmasta ylaosasta "&G5&".laz" -> rem pisteet vasemmasta ylaosasta L4134C4.laz
T7: ="las2las -i "&G5&".laz -o "&G5&"_P.laz -keep_xy "&TEXT(G20,"#")&" "&TEXT(G21,"#")&" "&TEXT(K12,"#")&" "&TEXT(K13,"#") -> las2las -i L4134C4.laz -o L4134C4_P.laz -keep_xy 391100 6681000 392000 6681400
T8: ="rem pisteet oikeasta alaosasta "&P34&".laz" -> rem pisteet oikeasta alaosasta L4134E1.laz
T9: ="las2las -i "&P34&".laz -o "&P34&"_P.laz -keep_xy "&TEXT(K27,"#")&" "&TEXT(K28,"#")&" "&TEXT(O20,"#")&" "&TEXT(O21,"#") -> las2las -i L4134E1.laz -o L4134E1_P.laz -keep_xy 392000 6679300 394300 6681000
T10: ="rem pisteet oikeasta ylaosasta "&P5&".laz" -> rem pisteet oikeasta ylaosasta L4134E2.laz
B11: =H38 -> 150 | T11: ="las2las -i "&P5&".laz -o "&P5&"_P.laz -keep_xy "&TEXT(K20,"#")&" "&TEXT(K21,"#")&" "&TEXT(O12,"#")&" "&TEXT(O13,"#") -> las2las -i L4134E2.laz -o L4134E2_P.laz -keep_xy 392000 6681000 394300 6681400
K12: =K36 -> 392000 | O12: =INT((K36+(N24/$H$38)*3000)/10)*10 -> 394300 | T12: rem pisteiden yhdistely
K13: =INT((D21+((I14)/$H$38)*3000)/10)*10 -> 6681400 | O13: =INT((D21+((I14)/$H$38)*3000)/10)*10 -> 6681400 | T13: ="las2las -i *_P.laz -o "&I1&".laz -merged" -> las2las -i *_P.laz -o Kivikko.laz -merged
I14: 20 | T14: rem pisteiden pullautus yhdistetysta tiedostosta .png tiedostoksi
T15: ="pullauta "&I1&".laz" -> pullauta Kivikko.laz
T16: rem shapefilen pullautus samaan .png tiedostoon
T17: ="pullauta "&I2 -> pullauta L4134R.shp.zip L4134l.shp.zip
T19: Kopioi nämä rivit esimerkiksi "TEEDXF.bat" tiedostoksi, jolla voit ajaa DXF tiedostot
D20: =D36 -> 389000 | E20: (X) | G20: =G27 -> 391100 | K20: =D36+3000 -> 392000 | L20: (X) | O20: =INT((K36+(N24/$H$38)*3000)/10)*10 -> 394300 | R20: =D36+6000 -> 395000 | S20: (X) | T20: rem Tehdään vielä kayrasto 0.25 metrin, 1 metrin ja 2 metrin intervalleilla
D21: =D37+3000 -> 6681000 | E21: (Y) | G21: =D21 -> 6681000 | K21: =D37+3000 -> 6681000 | L21: (Y) | O21: =D21 -> 6681000 | R21: =D37+3000 -> 6681000 | S21: (Y) | T21: pullauta xyz2contours 0.25 xyz2.xyz null out.dxf
I22: 85 | T22: pullauta smoothjoin
T23: copy temp\out.dxf contours025.dxf /Y
J24: 45 | N24: 115 | T24: copy temp\out2.dxf contoursmooth025.dxf /Y
T25: pullauta xyz2contours 1.0 xyz2.xyz null out.dxf
T26: pullauta smoothjoin
B27: =H38 -> 150 | G27: =INT((D36+(($H$38-J24)/$H$38)*3000)/10)*10 -> 391100 | K27: =K36 -> 392000 | T27: copy temp\out.dxf contours10.dxf /Y
G28: =INT((D37+(($H$38-I22)/$H$38)*3000)/10)*10 -> 6679300 | K28: =G28 -> 6679300 | T28: copy temp\out2.dxf contoursmooth10.dxf /Y
T29: pullauta xyz2contours 2.0 xyz2.xyz null out.dxf
T30: pullauta smoothjoin
T31: copy temp\out.dxf contours20.dxf /Y
T32: copy temp\out2.dxf contoursmooth20.dxf /Y
G34: L4134C3 | P34: L4134E1
D36: 389000 | E36: (X) | K36: =D36+3000 -> 392000 | L36: (X)
D37: 6678000 | E37: (Y) | K37: =D37 -> 6678000 | L37: (Y)
H38: 150 | O38: =H38 -> 150 | T38: SYÖTÄ TIETOJA VAIN KELTAISIIN KENTTIIN !!!!
H39: (Ruudun koko paperilla)

Sheet 2AREAV
G1: Projektin nimi: | J1: Luukki | O1: LAZ tiedotojen yhdistely KAHDELTA PÄÄLLEKKÄISELTÄ MML-karttalehdeltä
G2: Shape tiedoston nimi: | J2: L4132R.shp.zip
O3: Kopioi nämä rivit esimerkiksi "PULLAUTIN.BAT" tiedostoksi, jolla voit ajaa pullautuksen
M4: =D36+3000 -> 374000 | N4: (X) | O4: ="rem pisteet vasemmasta alaosasta "&G34&".laz" -> rem pisteet vasemmasta alaosasta L4132F4.laz
G5: L4141E3 | M5: =D37+6000 -> 6693000 | N5: (Y) | O5: ="las2las -i "&G34&".laz -o "&G34&"_P.laz -keep_xy "&TEXT(G27,"#")&" "&TEXT(G28,"#")&" "&TEXT(K20,"#")&" "&TEXT(K21,"#") -> las2las -i L4132F4.laz -o L4132F4_P.laz -keep_xy 372500 6688500 373250 6690000
O6: ="rem pisteet vasemmasta ylaosasta "&G5&".laz" -> rem pisteet vasemmasta ylaosasta L4141E3.laz
O7: ="las2las -i "&G5&".laz -o "&G5&"_P.laz -keep_xy "&TEXT(G20,"#")&" "&TEXT(G21,"#")&" "&TEXT(K12,"#")&" "&TEXT(K13,"#") -> las2las -i L4141E3.laz -o L4141E3_P.laz -keep_xy 372500 6690000 373250 6691500
O8: rem pisteiden yhdistely
O9: ="las2las -i *_P.laz -o "&J1&".laz -merged" -> las2las -i *_P.laz -o Luukki.laz -merged
O10: rem pisteiden pullautus yhdistetysta tiedostosta .png tiedostoksi
B11: =I38 -> 200 | O11: ="pullauta "&J1&".laz" -> pullauta Luukki.laz
K12: =K20 -> 373250 | O12: rem shapefilen pullautus samaan .png tiedostoon
K13: =INT((D21+((I14)/$I$38)*3000)/10)*10 -> 6691500 | O13: ="pullauta "&J2 -> pullauta L4132R.shp.zip
I14: 100
O15: Kopioi nämä rivit esimerkiksi "TEEDXF.bat" tiedostoksi, jolla voit ajaa DXF tiedostot
O16: rem Tehdään vielä kayrasto 0.25 metrin, 1 metrin ja 2 metrin intervalleilla
O17: pullauta xyz2contours 0.25 xyz2.xyz null out.dxf
O18: pullauta smoothjoin
O19: copy temp\out.dxf contours025.dxf /Y
D20: =D36 -> 371000 | E20: (X) | G20: =G27 -> 372500 | K20: =INT((D36+((F24+J24)/$I$38)*3000)/10)*10 -> 373250 | M20: =D36+3000 -> 374000 | N20: (X) | O20: copy temp\out2.dxf contoursmooth025.dxf /Y
D21: =D37+3000 -> 6690000 | E21: (Y) | G21: =D21 -> 6690000 | K21: =D21 -> 6690000 | M21: =D37+3000 -> 6690000 | N21: (Y) | O21: pullauta xyz2contours 1.0 xyz2.xyz null out.dxf
I22: 100 | O22: pullauta smoothjoin
O23: copy temp\out.dxf contours10.dxf /Y
F24: 100 | J24: 50 | O24: copy temp\out2.dxf contoursmooth10.dxf /Y
O25: pullauta xyz2contours 2.0 xyz2.xyz null out.dxf
O26: pullauta smoothjoin
B27: =I38 -> 200 | G27: =INT((D36+((F24)/$I$38)*3000)/10)*10 -> 372500 | O27: copy temp\out.dxf contours20.dxf /Y
G28: =INT((D37+(($I$38-I22)/$I$38)*3000)/10)*10 -> 6688500 | O28: copy temp\out2.dxf contoursmooth20.dxf /Y
G34: L4132F4
O35: SYÖTÄ TIETOJA VAIN KELTAISIIN KENTTIIN !!!!
D36: 371000 | E36: (X) | M36: =D36+3000 -> 374000
D37: 6687000 | E37: (Y) | M37: =D37 -> 6687000
I38: 200
I39: (Ruudun koko paperilla)

Sheet 2AREAH
F1: Projektin nimi: | I1: soderkulla | T1: LAZ tiedotojen yhdistely KAHDELTA VIEREKKÄISELTÄ MML-karttalehdeltä
F2: Shape tiedoston nimi: | I2: L4312L.shp.zip
D5: =D21 -> 404000 | E5: (X) | R5: =D21+6000 -> 410000 | S5: (X) | T5: Kopioi nämä rivit esimerkiksi "PULLAUTIN.BAT" tiedostoksi, jolla voit ajaa pullautuksen
D6: =D22+3000 -> 6687000 | E6: (Y) | R6: =D22+3000 -> 6687000 | S6: (Y) | T6: ="rem pisteet vasemmasta alaosasta "&G19&".laz" -> rem pisteet vasemmasta alaosasta L4312B1.laz
T7: ="las2las -i "&G19&".laz -o "&G19&"_P.laz -keep_xy "&TEXT(G15,"#")&" "&TEXT(G16,"#")&" "&TEXT(K8,"#")&" "&TEXT(K9,"#") -> las2las -i L4312B1.laz -o L4312B1_P.laz -keep_xy 405500 6685500 407000 6687000
K8: =D21+3000 -> 407000 | L8: (X) | O8: =INT((K21+((N12)/$H$23)*3000)/10)*10 -> 408500 | T8: ="rem pisteet oikeasta alaosasta "&P19&".laz" -> rem pisteet oikeasta alaosasta L4312B3.laz
K9: =INT((D22+((I18+I10)/$H$23)*3000)/10)*10 -> 6687000 | L9: (Y) | O9: =K9 -> 6687000 | T9: ="las2las -i "&P19&".laz -o "&P19&"_P.laz -keep_xy "&TEXT(K15,"#")&" "&TEXT(K16,"#")&" "&TEXT(O8,"#")&" "&TEXT(O9,"#") -> las2las -i L4312B3.laz -o L4312B3_P.laz -keep_xy 407000 6685500 408500 6687000
I10: 100 | T10: rem pisteiden yhdistely
T11: ="las2las -i *_P.laz -o "&I1&".laz -merged" -> las2las -i *_P.laz -o soderkulla.laz -merged
J12: 100 | N12: 100 | T12: rem pisteiden pullautus yhdistetysta tiedostosta .png tiedostoksi
B13: =H23 -> 200 | T13: ="pullauta "&I1&".laz" -> pullauta soderkulla.laz
T14: rem shapefilen pullautus samaan .png tiedostoon
G15: =INT((D21+(($H$23-J12)/$H$23)*3000)/10)*10 -> 405500 | K15: =D21+3000 -> 407000 | T15: ="pullauta "&I2 -> pullauta L4312L.shp.zip
G16: =INT((D22+((I18)/$H$23)*3000)/10)*10 -> 6685500 | K16: =G16 -> 6685500
T17: Kopioi nämä rivit esimerkiksi "TEEDXF.bat" tiedostoksi, jolla voit ajaa DXF tiedostot
I18: 100 | T18: rem Tehdään vielä kayrasto 0.25 metrin, 1 metrin ja 2 metrin intervalleilla
G19: L4312B1 | P19: L4312B3 | T19: pullauta xyz2contours 0.25 xyz2.xyz null out.dxf
T20: pullauta smoothjoin
D21: 404000 | E21: (X) | K21: =D21+3000 -> 407000 | L21: (X) | T21: copy temp\out.dxf contours025.dxf /Y
D22: 6684000 | E22: (Y) | K22: =D22 -> 6684000 | L22: (Y) | T22: copy temp\out2.dxf contoursmooth025.dxf /Y
H23: 200 | O23: =H23 -> 200 | T23: pullauta xyz2contours 1.0 xyz2.xyz null out.dxf
H24: (Ruudun koko paperilla) | T24: pullauta smoothjoin
T25: copy temp\out.dxf contours10.dxf /Y
T26: copy temp\out2.dxf contoursmooth10.dxf /Y
T27: pullauta xyz2contours 2.0 xyz2.xyz null out.dxf
T28: pullauta smoothjoin
T29: copy temp\out.dxf contours20.dxf /Y
T30: copy temp\out2.dxf contoursmooth20.dxf /Y
T33: SYÖTÄ TIETOJA VAIN KELTAISIIN KENTTIIN !!!!

Sheet 1AREA
F1: Projektin nimi: | I1: SAVITAIPALE | N1: LAZ tiedot YHDELTÄ MML-karttalehdeltä
F2: Shape tiedoston nimi: | I2: M5114R.shp.zip
L5: =D21+3000 -> 539000 | M5: (X) | N5: Kopioi nämä rivit esimerkiksi "PULLAUTIN.BAT" tiedostoksi, jolla voit ajaa pullautuksen
L6: =D22+3000 -> 6786000 | M6: (Y) | N6: ="rem Mapping Project : "&I1 -> rem Mapping Project : SAVITAIPALE
N7: ="rem Pisteet osasta "&G19&".laz" -> rem Pisteet osasta M5114F2.laz
K8: =INT((D21+((F12+J12)/$H$23)*3000)/10)*10 -> 538240 | N8: ="las2las -i "&G19&".laz -o "&I1&".laz -keep_xy "&TEXT(G15,"#")&" "&TEXT(G16,"#")&" "&TEXT(K8,"#")&" "&TEXT(K9,"#") -> las2las -i M5114F2.laz -o SAVITAIPALE.laz -keep_xy 537200 6785030 538240 6785710
K9: =INT((D22+((I18+I10)/$H$23)*3000)/10)*10 -> 6785710 | N9: rem Pisteiden pullautus yhdistetysta tiedostosta .png tiedostoksi
I10: 29 | N10: =" pullauta "&I1&".laz" -> pullauta SAVITAIPALE.laz
N11: rem Shapefilen pullautus samaan .png tiedostoon
F12: 51 | J12: 44 | N12: ="rem pullauta "&I2 -> rem pullauta M5114R.shp.zip
B13: =H23 -> 127
N14: Kopioi nämä rivit esimerkiksi "TEEDXF.bat" tiedostoksi, jolla voit ajaa DXF tiedostot
G15: =INT((D21+((F12)/$H$23)*3000)/10)*10 -> 537200 | N15: rem Tehdään vielä kayrasto 0.25 metrin, 1 metrin ja 2 metrin intervalleilla
G16: =INT((D22+((I18)/$H$23)*3000)/10)*10 -> 6785030 | N16: pullauta xyz2contours 0.25 xyz2.xyz null out.dxf
N17: pullauta smoothjoin
I18: 86 | N18: copy temp\out.dxf contours025.dxf /Y
G19: M5114F2 | N19: copy temp\out2.dxf contoursmooth025.dxf /Y
N20: pullauta xyz2contours 1.0 xyz2.xyz null out.dxf
D21: 536000 | E21: (X) | N21: pullauta smoothjoin
D22: 6783000 | E22: (Y) | N22: copy temp\out.dxf contours10.dxf /Y
H23: 127 | N23: copy temp\out2.dxf contoursmooth10.dxf /Y
H24: (Ruudun koko paperilla) | N24: pullauta xyz2contours 2.0 xyz2.xyz null out.dxf
N25: pullauta smoothjoin
N26: copy temp\out.dxf contours20.dxf /Y
N27: copy temp\out2.dxf contoursmooth20.dxf /Y
N30: SYÖTÄ TIETOJA VAIN KELTAISIIN KENTTIIN !!!!
